bitfinex-derivatives/quotes_ETHF0:USTF0_20250730
["timestamp","ask_amount","ask_price","bid_price","bid_amount"]
[1753876174367,41.6206,3756.7,3756.6,6.5655]
[1753876174860,41.6639,3756.7,3756.6,6.5655]
[1753876175765,41.6639,3756.7,3756.6,3.3577]
[1753876176369,47.02589229,3756.7,3756.6,1.2321]
[1753876176764,47.02589229,3756.7,3756.6,2.2312]
[1753876177267,1.5394,3756.4,3756.3,2.9801]
[1753876177469,1.5775,3756.4,3756.3,2.9801]
[1753876177772,20.0715,3756.4,3756.3,2.9801]
[1753876178263,20.0715,3756.4,3756.3,2.2312]
[1753876179466,20.0715,3756.4,3756.3,2.9801]
[1753876179868,20.0715,3756.4,3756.3,3.3577]
[1753876180173,20.0334,3756.4,3756.3,3.3577]
[1753876180567,26.7018,3756.4,3753.6,4.74550855]
[1753876180766,3.2078,3754.5,3752.5,7.5908377]
[1753876181068,40.8,3752.6,3750.8,0.21055632]
[1753876181374,0.5333,3750.5,3750.0,1.0]
[1753876181670,60.883,3750.4,3750.0,0.99920001]
[1753876181868,0.53343,3749.6,3749.0,0.7537]
[1753876182061,0.53348,3749.2,3748.9,0.7537]
[1753876182267,1.33334,3750.2,3747.9,5.32836019]
[1753876182268,0.53352,3748.9,3748.1,0.7537]
[1753876182462,0.53356,3748.6,3748.2,7.52166865]
[1753876182668,3.2078,3748.3,3748.2,15.35805343]
[1753876182876,3.2078,3748.3,3748.2,13.68145905]
[1753876183074,3.2078,3748.3,3748.2,21.2031277]
[1753876183273,3.2078,3748.3,3748.2,26.53781248]
[1753876183573,3.2078,3748.3,3748.2,21.2031277]
[1753876183777,0.53353,3748.8,3748.4,0.7489]
[1753876183963,0.53353,3748.8,3748.5,1.7528]
[1753876184273,0.53353,3748.8,3748.7,10.02336865]
[1753876184971,1.33348,3749.8,3749.0,0.9991]
[1753876185166,22.6728,3750.0,3749.0,1.748]
[1753876185167,0.53349,3749.1,3749.0,1.748]
[1753876185370,5.33525402,3749.8,3749.2,1.748]
[1753876185576,0.96042334,3749.7,3749.1,0.7489]
[1753876185878,0.53347,3749.2,3749.1,1.5026]
[1753876186066,1.49389334,3749.2,3749.1,8.28257865]
[1753876186268,1.49389334,3749.2,3749.1,10.36729865]
[1753876186468,1.49389334,3749.2,3748.2,19.645]
[1753876186469,1.78102334,3749.2,3748.4,3.2078]
[1753876186670,2.52870334,3749.1,3748.8,3.2078]
[1753876186875,0.53351,3748.9,3748.8,3.2078]
[1753876187070,42.29393334,3748.9,3748.8,3.2078]
[1753876187270,42.29393334,3748.9,3748.8,9.61405865]
[1753876187470,42.29393334,3748.9,3748.8,6.40625865]
[1753876187670,42.29393334,3748.9,3748.8,7.40535865]
[1753876188069,42.71083882,3748.9,3748.8,7.40535865]
[1753876188376,42.17732882,3748.9,3748.8,8.60345865]
[1753876188564,42.17732882,3748.9,3748.8,11.81125865]
[1753876188969,0.41690548,3748.9,3748.8,16.81125865]
[1753876189170,4.0284,3750.3,3749.5,4.08413156]
[1753876189469,0.8206,3750.2,3749.5,19.677]
[1753876189672,5.33496939,3750.2,3750.0,3.2078]
[1753876189873,3.2078,3750.7,3750.0,3.2078]
[1753876189874,2.6626,3750.1,3750.0,3.2078]
[1753876190066,43.4626,3750.1,3750.0,3.2078]
[1753876190270,43.4626,3750.1,3750.0,7.29193156]
[1753876190778,2.6626,3750.0,3749.3,3.2078]
[1753876190967,1.0348,3749.5,3748.9,3.2078]
[1753876191173,1.8554,3749.2,3749.0,4.08413156]
[1753876191370,0.8206,3749.1,3749.0,5.91053156]
[1753876191577,2.2373,3749.1,3749.0,5.91053156]
[1753876191774,3.4729,3749.1,3748.9,21.89976545]
[1753876191977,0.935,3749.1,3748.5,0.53356]
[1753876192280,5.8831037,3748.6,3748.5,0.53356]
[1753876192880,0.935,3748.6,3748.5,0.53356]
[1753876193080,0.935,3748.6,3748.5,1.46856]
[1753876193380,1.83367295,3748.6,3748.5,1.69876]
[1753876193875,0.935,3749.2,3749.1,1.46848]
[1753876194380,43.1517,3749.2,3749.1,1.46848]
[1753876194769,44.3873,3749.2,3749.1,1.46848]
[1753876194972,3.5873,3749.1,3749.0,19.68]
[1753876195173,0.935,3749.1,3748.8,0.53352]
[1753876195376,3.5873,3748.9,3748.8,0.53352]
[1753876196081,3.5873,3748.9,3748.8,20.20252]
[1753876196382,0.935,3748.9,3748.8,21.13752]
[1753876196880,2.3517,3748.9,3748.8,21.13752]
[1753876197083,3.5873,3748.9,3748.8,20.19052]
[1753876197481,44.0078,3749.2,3748.7,19.657]
[1753876197679,3.5873,3748.8,3748.7,19.657]
[1753876197876,3.5873,3748.8,3748.7,20.19054]
[1753876198582,3.5873,3748.8,3748.7,21.12554]
[1753876199080,0.935,3749.0,3747.8,0.19744654]
[1753876199284,3.5873,3748.7,3748.0,1.3341]
[1753876199484,2.6523,3748.8,3748.7,1.46854]
[1753876199782,2.6523,3749.1,3748.8,0.935]
[1753876199980,2.6523,3749.1,3748.6,19.641]
[1753876199981,3.5873,3749.1,3748.6,19.641]
[1753876200285,3.5873,3748.6,3748.5,19.645]
[1753876200482,6.39366,3748.6,3748.1,0.53362]
[1753876200678,2.3517,3748.3,3748.2,19.645]
[1753876200876,3.5873,3748.2,3748.1,0.53362]
[1753876201085,3.31225408,3748.2,3748.1,21.11462]
[1753876201386,0.96055408,3748.2,3748.1,19.651]
[1753876201987,1.89555408,3748.2,3748.1,20.586]
[1753876202583,4.54785408,3748.2,3748.1,20.586]
[1753876202785,4.54785408,3748.2,3748.1,20.592]
[1753876202986,4.54785408,3748.2,3748.1,17.49566845]
[1753876203194,3.25635778,3748.2,3748.0,0.53363]
[1753876203487,6.84365778,3748.1,3748.0,0.53363]
[1753876203685,4.54785408,3748.1,3748.0,20.17963]
[1753876203885,4.54785408,3748.1,3748.0,21.11463]
[1753876204081,6.84365778,3748.1,3748.0,20.17963]
[1753876204285,6.84365778,3748.1,3748.0,1.46863]
[1753876204484,4.19135778,3748.1,3748.0,21.33683]
[1753876204689,3.25635778,3748.1,3748.0,21.33683]
[1753876205090,0.96055408,3748.1,3748.0,21.33683]
[1753876205590,0.41806408,3748.1,3748.0,26.33683]
[1753876206186,0.41806408,3748.1,3748.0,26.31683]
[1753876206492,0.41806408,3748.1,3748.0,21.31283]
[1753876206791,2.72828371,3748.1,3748.0,0.56141476]
[1753876206990,2.76976408,3748.1,3748.0,0.53363]
[1753876207190,2.76976408,3748.1,3748.0,20.14563]
[1753876207492,1.35306408,3748.1,3748.0,20.14563]
[1753876207993,0.41806408,3748.1,3748.0,20.37583]
[1753876208892,1.35306408,3748.1,3748.0,20.17333]
[1753876209089,0.41806408,3748.1,3748.0,20.17333]
[1753876209290,0.41806408,3748.1,3748.0,17.50584111]
[1753876209887,1.35306408,3748.1,3748.0,17.50584111]
[1753876210086,0.41806408,3748.1,3748.0,18.03947111]
[1753876210490,0.41806408,3748.1,3748.0,0.53363]
[1753876210788,1.35306408,3748.1,3748.0,20.11663]
[1753876210990,0.41806408,3748.1,3748.0,20.11163]
[1753876211389,6.37086408,3748.1,3748.0,20.10963]
[1753876211590,8.7032709,3748.1,3748.0,20.10963]
[1753876211787,6.37086408,3748.1,3748.0,0.53363]
[1753876211989,6.37086408,3748.1,3748.0,20.16163]
[1753876212983,6.37086408,3748.1,3748.0,18.0003321]
[1753876213294,6.37086408,3748.1,3748.0,20.14563]
[1753876214195,9.66800242,3748.1,3748.0,17.07692909]
[1753876214788,4.65020242,3748.1,3748.0,17.07692909]
[1753876214993,6.37086408,3748.1,3748.0,17.07692909]
[1753876215195,6.35797202,3748.1,3748.0,0.53363]
[1753876215396,5.9528,3748.0,3747.9,19.598]
[1753876215592,9.53861813,3748.0,3747.9,19.598]
[1753876215895,4.7172,3748.0,3747.9,19.598]
[1753876216090,3.29984935,3748.4,3748.3,0.53359]
[1753876216286,3.29984935,3748.5,3748.3,23.33439]
[1753876216802,4.23484935,3748.9,3748.8,0.53352]
[1753876217097,0.53357,3748.5,3748.4,0.53357]
[1753876217297,6.09871206,3748.5,3748.4,19.605]
[1753876217487,1.46862,3748.1,3748.0,0.53363]
[1753876217693,1.46862,3748.1,3747.4,1.33428]
[1753876217694,3.5873,3747.8,3747.7,20.15667]
[1753876217988,3.5873,3747.8,3747.7,19.621]
[1753876218594,5.47343355,3747.8,3747.7,19.621]
[1753876218799,44.3873,3747.8,3747.7,19.621]
[1753876218995,40.8,3747.8,3747.6,20.16169]
[1753876219198,3.5873,3747.7,3747.6,20.16169]
[1753876219996,3.5873,3747.7,3747.6,20.14969]
[1753876220389,3.5873,3747.7,3747.6,0.53369]
[1753876220593,2.6523,3747.5,3747.4,20.13071]
[1753876220788,4.05562079,3747.5,3747.2,0.01868037]
[1753876221097,3.5873,3747.3,3747.1,19.595]
[1753876221401,2.7574,3747.3,3747.2,0.1933]
[1753876221700,1.88502079,3747.4,3747.3,0.72783]
[1753876221895,4.5425,3748.2,3747.7,0.1941]
[1753876222097,1.5218,3747.8,3747.6,0.53449]
[1753876222298,1.5218,3747.6,3747.5,0.53369]
[1753876222490,1.5218,3747.6,3747.0,0.53376]
[1753876222491,3.7402,3747.1,3747.0,0.53376]
[1753876222890,3.7402,3747.1,3747.0,1.14407081]
[1753876222891,2.4055,3747.1,3747.0,1.14407081]
[1753876223196,1.91869679,3747.1,3747.0,0.41701081]
[1753876224099,0.8837,3747.5,3747.4,0.53372]
[1753876224299,0.8837,3747.5,3747.4,0.93925096]
[1753876224500,5.5337,3747.5,3747.4,0.40553096]
[1753876224704,31.38536246,3747.5,3747.4,0.40553096]
[1753876225195,35.04244246,3747.5,3746.6,0.17556605]
[1753876225401,3.7402,3746.7,3746.6,0.17556605]
[1753876225602,6.948,3746.7,3746.6,0.17556605]
[1753876225898,6.948,3746.7,3745.8,3.40535196]
[1753876225899,3.7402,3746.2,3746.1,1.82919]
[1753876226107,44.5402,3746.2,3746.1,1.2953]
[1753876226301,1.3347,3746.1,3745.8,0.19755196]
[1753876226604,40.8,3746.2,3745.8,0.19755196]
[1753876226605,0.8837,3745.9,3745.8,0.73148196]
[1753876226799,2.4055,3745.9,3745.8,2.02678196]
[1753876227100,2.4055,3745.9,3745.8,2.69028196]
[1753876227301,2.4055,3745.9,3745.8,2.69268196]
[1753876227503,3.7402,3745.9,3745.8,0.73148196]
[1753876227899,3.7402,3745.9,3745.8,2.02678196]
[1753876228099,0.8837,3745.9,3745.8,2.69268196]
[1753876228296,3.47993,3747.0,3746.9,0.53379]
[1753876228499,10.02165653,3748.2,3748.1,0.53362]
[1753876228807,4.36459737,3748.2,3748.1,0.53362]
[1753876229197,2.4055,3748.2,3748.1,0.53362]
[1753876229405,2.4055,3748.2,3748.1,1.82892]
[1753876229600,3.02986223,3748.2,3748.1,1.82892]
[1753876229802,2.4055,3748.2,3748.1,1.82892]
[1753876230101,1.5218,3749.0,3748.9,1.8288]
[1753876230307,2.14403834,3749.0,3748.9,1.8288]
[1753876230498,3.47873834,3749.0,3748.9,1.8288]
[1753876230808,3.47873834,3749.0,3748.9,0.5335]
[1753876231412,2.14403834,3749.0,3748.9,1.8288]
[1753876231708,0.62223834,3749.0,3748.9,2.7286]
[1753876231896,2.8565,3749.8,3749.7,0.53339]
[1753876232096,3.7402,3749.7,3749.5,1.2953]
[1753876232302,2.4055,3749.6,3749.5,1.82871]
[1753876232805,43.4055,3749.9,3749.8,1.82867]
[1753876233006,2.6055,3749.9,3749.8,1.82867]
[1753876233201,1.3347,3749.8,3749.4,1.2953]
[1753876233403,3.7402,3749.8,3749.5,0.53342]
[1753876233597,0.8837,3749.7,3749.5,0.53342]
[1753876233801,0.2,3749.9,3749.8,1.2953]
[1753876233998,4.7425,3749.9,3749.8,1.2953]
[1753876234202,7.148,3749.9,3749.8,1.2953]
[1753876234403,0.8837,3749.7,3749.5,1.82871]
[1753876234707,3.4078,3749.9,3749.2,0.53346]
[1753876234708,0.8837,3749.3,3749.2,0.53346]
[1753876234908,3.7402,3749.4,3748.8,1.3338]
[1753876235108,0.8837,3749.4,3749.3,0.53344]
[1753876235308,3.2078,3749.5,3749.3,0.53344]
[1753876235508,3.2078,3749.5,3748.6,1.33385]
[1753876235509,5.6133,3749.5,3749.4,1.2953]
[1753876235707,3.2078,3749.5,3749.1,0.53347]
[1753876235908,0.53344,3749.4,3748.9,0.5335]
[1753876236102,0.5335,3749.0,3748.6,2.45001542]
[1753876236415,3.7402,3748.8,3748.7,1.91647542]
[1753876236714,3.48004492,3748.8,3748.7,1.2953]
[1753876236914,3.48004492,3748.8,3748.6,1.90938632]
[1753876237119,3.2078,3749.0,3748.7,1.90938632]
[1753876237306,2.4055,3748.9,3748.8,2.31540586]
[1753876237615,2.93902,3748.8,3748.7,1.90938632]
[1753876238218,43.2055,3748.8,3748.7,1.2953]
[1753876238513,1.5218,3751.2,3751.1,0.53319]
[1753876238807,2.4055,3751.2,3751.1,1.2953]
[1753876239314,1.3347,3751.7,3751.1,5.3351117]
[1753876239511,2.05495,3751.5,3751.2,3.2078]
[1753876239707,41.33316,3751.4,3751.2,3.2078]
[1753876240013,42.66786,3751.4,3750.9,1.2953]
[1753876240209,42.1347,3751.4,3751.2,1.82846]
[1753876240410,0.8837,3751.4,3751.3,1.2953]
[1753876240710,2.4055,3751.4,3751.3,1.2953]
[1753876241616,3.7402,3751.4,3751.3,1.2953]
[1753876241913,1.7218,3751.9,3751.3,6.62671402]
[1753876242213,1.7218,3751.9,3751.8,2.0386]
[1753876242214,0.2,3751.9,3751.8,2.0386]
[1753876242614,0.2,3751.9,3751.8,7.37001402]
[1753876243512,1.5218,3752.8,3751.9,1.2953]
[1753876243720,0.53296,3752.7,3752.4,0.7433]
[1753876243914,0.8837,3752.9,3752.7,1.2953]
[1753876244223,2.93844,3752.9,3752.8,1.2953]
[1753876244614,2.4055,3752.9,3752.8,1.2953]
[1753876245417,3.2078,3753.1,3752.8,1.2953]
[1753876245613,0.53292,3753.0,3752.9,1.2953]
[1753876245912,0.018,3753.3,3752.4,3.9511]
[1753876246106,0.018,3753.3,3753.2,4.5031]
[1753876246309,2.4235,3753.3,3753.2,1.2953]
[1753876246615,0.9017,3753.3,3753.2,1.2953]
[1753876247318,0.018,3753.3,3753.2,2.0386]
[1753876247512,0.018,3753.3,3753.2,7.90020511]
[1753876248217,0.018,3753.3,3753.2,12.90020511]
[1753876248415,0.018,3753.3,3753.2,7.90020511]
[1753876248608,2.4235,3753.3,3753.2,6.62401511]
[1753876248915,0.018,3753.3,3753.2,7.36731511]
[1753876249619,3.7582,3753.3,3753.2,5.32871511]
[1753876249808,2.4235,3753.3,3753.2,6.62401511]
[1753876250411,0.018,3753.3,3753.2,7.36731511]
[1753876250617,0.2,3753.9,3753.8,2.57141]
[1753876250913,0.2,3753.9,3753.8,7.90012511]
[1753876251108,2.6055,3753.9,3753.8,7.15682511]
[1753876251622,0.2,3753.9,3753.8,7.89392511]
[1753876252611,0.2,3753.9,3753.8,7.15682511]
[1753876252811,0.53281,3753.8,3753.3,4.4734]
[1753876253120,2.2946,3753.5,3753.4,1.79846]
[1753876253315,0.8823,3753.8,3753.7,0.53282]
[1753876253520,1.0823,3753.9,3753.8,1.2656]
[1753876253723,3.7886,3753.9,3753.8,1.2656]
[1753876253914,0.73279,3753.9,3753.7,3.2078]
[1753876254115,3.5886,3753.8,3753.7,3.2078]
[1753876254515,0.53282,3753.7,3753.3,3.2078]
[1753876254710,3.5886,3753.6,3753.4,1.2656]
[1753876254923,2.2946,3753.5,3753.4,1.79846]
[1753876255123,2.2946,3753.5,3753.4,1.2656]
[1753876255323,4.12146,3753.5,3753.3,8.53580532]
[1753876255619,0.2,3753.9,3753.6,0.53283]
[1753876255822,0.53281,3753.8,3753.5,0.53284]
[1753876256017,3.5886,3753.6,3753.5,0.53284]
[1753876256319,2.7063,3753.5,3752.5,3.2078]
[1753876256520,3.5886,3752.8,3752.6,1.79857]
[1753876256721,3.5886,3752.7,3752.6,5.32850215]
[1753876256922,0.53298,3752.6,3752.5,5.32907007]
[1753876257116,0.53306,3752.1,3751.7,3.7409]
[1753876257419,2.2946,3751.9,3751.8,1.2656]
[1753876257619,1.4123,3751.8,3751.7,10.33557007]
[1753876257815,1.4123,3751.8,3751.7,9.80247007]
[1753876258015,3.5886,3751.8,3751.7,3.2078]
[1753876258220,3.5886,3751.8,3751.7,5.33063247]
[1753876258421,0.5331,3751.7,3751.3,0.53316]
[1753876258723,0.53313,3751.6,3751.3,5.8640056]
[1753876259026,0.53322,3750.9,3750.5,5.11610886]
[1753876259322,3.5886,3750.6,3750.5,1.90830886]
[1753876259624,4.12188,3750.5,3750.4,1.90830886]
[1753876259923,0.5333,3750.3,3750.2,1.92697428]
[1753876260219,44.9219,3750.3,3750.2,0.01866542]
[1753876260425,44.3886,3750.3,3750.2,0.01866542]
[1753876260921,0.53335,3750.0,3749.7,1.87146685]
[1753876261117,0.53343,3749.5,3749.2,2.39559427]
[1753876261317,1.4123,3749.6,3749.3,3.74125]
[1753876261518,1.82737,3749.8,3749.5,0.8921]
[1753876261827,0.53339,3749.7,3749.6,0.8921]
[1753876262125,4.12199,3749.7,3749.1,1.42557]
[1753876262321,0.53341,3749.6,3749.0,3.74128]
[1753876262526,2.7063,3749.4,3749.3,0.8921]
[1753876263128,2.7063,3749.4,3749.3,2.4551]
[1753876263425,2.7063,3749.4,3749.3,3.7207]
[1753876264624,0.8823,3749.7,3749.4,0.53343]
[1753876264928,2.7063,3750.1,3750.0,4.25404]
[1753876265127,40.8,3750.3,3750.0,2.8286]
[1753876265330,2.7063,3750.1,3750.0,3.7207]
[1753876265530,0.8823,3750.2,3749.4,3.2078]
[1753876265531,0.8823,3750.2,3749.5,0.8921]
[1753876265826,40.8,3750.3,3748.6,1.33384]
[1753876265827,0.8823,3749.8,3749.3,3.74124]
[1753876266029,3.5886,3749.8,3748.9,3.2078]
[1753876266424,0.5334,3749.6,3749.1,0.53347]
[1753876266831,3.2078,3749.5,3748.6,1.42564]
[1753876267131,3.2078,3749.1,3748.5,3.2078]
[1753876267325,2.7063,3748.9,3748.7,3.7207]
[1753876267530,41.6823,3749.0,3748.8,0.8921]
[1753876267724,40.8,3749.0,3748.9,0.8921]
[1753876267925,1.33344,3749.9,3749.0,0.8921]
[1753876267926,0.53347,3749.2,3749.0,0.8921]
[1753876268136,1.294,3748.9,3748.6,0.53354]
[1753876268334,2.2946,3749.3,3748.6,0.53354]
[1753876268534,2.2946,3749.1,3748.5,3.2078]
[1753876268833,1.4123,3748.8,3748.2,2.4551]
[1753876269129,0.53353,3748.8,3748.2,2.98869]
[1753876269334,0.8823,3748.5,3748.2,2.98869]
[1753876269533,2.2946,3750.4,3749.1,1.563]
[1753876269735,0.8823,3750.3,3749.5,1.563]
[1753876269932,1.4123,3750.1,3749.5,1.563]
[1753876270127,2.2946,3749.7,3749.0,2.4551]
[1753876270330,40.8,3750.2,3749.4,0.53342]
[1753876270331,1.4123,3749.5,3749.4,0.53342]
[1753876270635,3.5886,3749.5,3749.4,0.53342]
[1753876271132,3.5886,3749.4,3749.3,0.53344]
[1753876271340,3.5886,3749.9,3749.8,0.53338]
[1753876271529,3.2078,3750.1,3750.0,0.53335]
[1753876271734,3.23966,3749.9,3749.3,6.0364]
[1753876271934,0.5334,3749.7,3749.3,3.74124]
[1753876272132,0.53342,3749.6,3749.3,3.74124]
[1753876272331,3.5886,3749.4,3749.3,3.2078]
[1753876272526,3.5886,3749.4,3748.7,3.2078]
[1753876272728,3.23975,3749.3,3748.7,3.2078]
[1753876273036,3.5886,3749.1,3748.8,0.53351]
[1753876273230,2.7063,3749.1,3748.2,3.2078]
[1753876273427,5.9141,3749.0,3748.9,0.5335]
[1753876273631,5.9141,3749.0,3748.9,2.6912]
[1753876273830,5.9141,3749.0,3748.9,2.1577]
[1753876274031,46.7141,3749.0,3748.9,0.8921]
[1753876274232,43.5063,3749.0,3748.9,0.8921]
[1753876274739,40.8,3749.0,3748.9,3.7207]
[1753876275438,1.4123,3749.1,3749.0,0.53349]
[1753876275840,1.4123,3749.1,3749.0,1.42559]
[1753876276037,2.7063,3749.1,3749.0,1.42559]
[1753876276340,2.7063,3749.1,3749.0,0.8921]
[1753876276544,0.8823,3749.1,3748.9,0.5335]
[1753876276732,2.7063,3749.0,3748.9,1.4256]
[1753876276934,60.856,3749.2,3748.9,4.2542]
[1753876277133,2.7063,3749.1,3749.0,1.42557]
[1753876277339,2.7063,3749.1,3749.0,0.8921]
[1753876277640,0.53353,3748.8,3748.6,3.2078]
[1753876277841,0.53353,3748.8,3748.2,0.8921]
[1753876277842,2.7063,3748.3,3748.2,3.2078]
[1753876278036,3.5886,3748.3,3748.2,3.2078]
[1753876278339,43.5063,3748.3,3748.2,6.9285]
[1753876278534,40.8,3748.3,3748.2,6.9285]
[1753876280040,0.53361,3748.1,3747.9,0.53363]
[1753876280240,4.12223,3748.0,3747.8,0.19744654]
[1753876280442,3.5886,3747.9,3747.8,0.19744654]
[1753876280635,3.5886,3747.9,3747.8,1.08954654]
[1753876280835,2.7063,3747.9,3747.8,1.08954654]
[1753876281036,3.5886,3747.9,3747.8,0.19744654]
[1753876281333,40.8,3748.0,3747.9,0.53364]
[1753876281537,60.797,3748.0,3747.9,7.45084]
[1753876281736,60.797,3748.0,3747.9,3.7094]
[1753876281939,4.28314,3747.9,3747.8,0.19744654]
[1753876282138,3.7495,3747.5,3747.2,0.01868037]
[1753876282439,2.831,3747.3,3747.2,0.89078037]
[1753876283239,20.046,3747.6,3747.3,3.7094]
[1753876283442,20.046,3747.6,3747.4,3.37101]
[1753876283740,4.28323,3747.3,3747.2,0.01868037]
[1753876283938,4.28323,3747.3,3746.3,4.7155]
[1753876283939,3.7495,3747.3,3746.3,3.2078]
[1753876284240,2.831,3747.0,3746.6,1.40591]
[1753876284437,2.831,3746.8,3746.6,0.8721]
[1753876284636,0.53385,3746.5,3746.3,3.2078]
[1753876284837,2.831,3746.4,3746.3,3.2078]
[1753876285140,2.831,3746.4,3746.3,4.0799]
[1753876285637,2.831,3746.8,3746.3,5.4095]
[1753876285837,20.046,3746.7,3746.6,0.53382]
[1753876286033,2.831,3746.8,3746.7,3.7094]
[1753876286239,22.859,3746.8,3746.7,3.7094]
[1753876286636,22.859,3746.8,3746.7,0.8721]
[1753876286840,22.85,3746.8,3746.7,2.2017]
[1753876287041,3.2078,3747.2,3746.3,3.2078]
[1753876287243,3.2078,3747.2,3746.4,1.5077]
[1753876287437,20.012,3747.1,3746.5,0.8721]
[1753876287741,1.3239,3746.6,3746.5,0.8721]
[1753876287932,1.3239,3746.6,3746.5,2.2017]
[1753876288337,2.831,3746.6,3746.5,0.8721]
[1753876288734,0.9185,3746.6,3746.3,3.74166]
[1753876288941,2.831,3746.5,3746.4,2.2017]
[1753876289238,40.8,3746.9,3746.8,3.7094]
[1753876289437,63.643,3746.9,3746.8,0.8721]
[1753876289644,2.2424,3746.8,3746.5,0.8721]
[1753876289841,1.5071,3746.4,3746.3,4.61376]
[1753876290136,3.7495,3746.4,3746.3,3.2078]
[1753876290535,19.984,3746.6,3746.4,0.53386]
[1753876290742,1.5071,3746.6,3746.5,3.7094]
[1753876290939,19.99,3746.6,3746.5,3.7094]
[1753876291341,20.52384,3746.6,3746.4,0.8721]
[1753876291542,2.831,3746.5,3746.4,0.8721]
[1753876292740,3.7495,3746.5,3746.4,0.8721]
[1753876292937,19.972,3746.6,3746.5,0.53384]
[1753876293244,21.4791,3746.6,3746.5,1.40594]
[1753876293445,21.4791,3746.6,3746.5,0.8721]
[1753876293635,2.831,3746.6,3746.5,0.8721]
[1753876293834,22.798,3746.6,3746.5,3.7094]
[1753876294342,1.5071,3746.6,3746.0,3.7094]
[1753876294538,19.94,3746.5,3746.0,3.7094]
[1753876294740,3.7495,3746.3,3746.0,2.2017]
[1753876294947,1.5071,3746.5,3746.3,0.53386]
[1753876295246,2.831,3746.2,3746.1,0.53389]
[1753876295547,2.831,3746.1,3746.0,0.5339]
[1753876295845,19.934,3746.3,3746.2,0.53389]
[1753876296047,2.831,3746.5,3746.4,4.24326]
[1753876296342,22.76,3746.5,3746.4,3.7094]
[1753876296547,22.76,3746.5,3746.4,0.8721]
[1753876296747,22.749,3746.5,3746.4,0.8721]
[1753876296938,0.9185,3746.4,3746.3,3.2078]
[1753876297142,3.7495,3746.4,3746.3,3.2078]
[1753876297544,3.7495,3746.4,3746.3,4.0799]
[1753876297751,2.831,3746.4,3746.3,4.0799]
[1753876298042,2.831,3746.4,3746.3,6.9172]
[1753876298247,40.8,3746.9,3746.8,0.8721]
[1753876298447,60.693,3746.9,3746.8,0.8721]
[1753876298644,0.9185,3746.8,3746.3,4.0799]
[1753876298845,1.5071,3746.8,3746.7,0.53381]
[1753876299044,1.5071,3746.8,3746.7,1.5077]
[1753876299252,21.4001,3746.8,3746.7,2.8373]
[1753876299445,3.36481,3746.7,3746.6,0.8721]
[1753876299951,3.36481,3746.7,3746.6,3.7094]
[1753876300149,2.831,3746.7,3746.6,3.7094]
[1753876301152,2.831,3746.7,3746.6,0.8721]
[1753876301350,19.893,3746.8,3746.5,0.8721]
[1753876301651,2.831,3746.3,3746.2,0.8721]
[1753876302552,1.5071,3746.6,3746.1,3.7094]
[1753876302744,19.855,3746.5,3746.4,1.5077]
[1753876302948,22.686,3746.5,3746.4,3.7094]
[1753876303144,0.53391,3746.1,3745.9,0.53392]
[1753876303345,2.831,3746.0,3745.9,1.40602]
[1753876303541,19.847,3746.1,3746.0,3.7094]
[1753876303949,22.678,3746.1,3746.0,3.7094]
[1753876304248,4.1263,3746.7,3746.3,2.73557]
[1753876304249,2.831,3746.4,3746.3,2.73557]
[1753876304449,21.3421,3746.4,3746.3,4.24327]
[1753876304745,22.666,3746.4,3746.3,3.7094]
[1753876304945,22.666,3746.4,3746.3,0.8721]
[1753876305156,1.45237,3746.3,3746.1,2.3798]
[1753876305356,3.76017,3746.6,3745.9,0.8721]
[1753876305652,2.831,3746.3,3746.1,3.7094]
[1753876305849,22.657,3746.2,3746.1,2.8373]
[1753876306453,22.657,3746.2,3746.1,2.2017]
[1753876306654,1.3239,3745.9,3745.8,3.90695196]
[1753876306955,2.831,3745.9,3745.8,3.90695196]
[1753876307851,20.7485,3746.2,3746.0,0.5339]
[1753876308054,2.831,3746.1,3746.0,0.5339]
[1753876308557,2.831,3746.1,3746.0,4.2433]
[1753876308957,2.831,3746.1,3746.0,3.7094]
[1753876309156,3.7495,3746.0,3745.8,0.19755196]
[1753876309348,2.831,3746.0,3745.9,1.40602]
[1753876309548,5.2614,3746.0,3745.9,5.24262]
[1753876309856,2.7887,3746.0,3745.9,3.04092]
[1753876310051,3.7543,3746.0,3745.9,3.04092]
[1753876310256,5.2614,3746.0,3745.9,3.04092]
[1753876310452,5.2614,3746.0,3745.9,6.75032]
[1753876310857,19.775,3746.1,3745.9,6.75032]
[1753876311057,5.2614,3746.6,3746.5,6.2164]
[1753876311353,2.831,3746.7,3746.6,4.24323]
[1753876311554,42.186,3746.9,3746.8,4.2465]
[1753876311860,60.566,3746.9,3746.8,4.2465]
[1753876312156,40.8,3746.9,3746.8,4.2465]
[1753876312353,60.56,3746.9,3746.8,4.2465]
[1753876312553,3.2078,3747.2,3747.1,4.24645]
[1753876312760,19.754,3747.2,3747.1,4.24645]
[1753876313555,19.752,3747.3,3747.2,4.24644]
[1753876313756,19.752,3747.3,3747.2,3.7127]
[1753876313957,2.669,3746.8,3745.5,2.39623158]
[1753876314265,1.33446,3746.9,3745.5,2.39623158]
[1753876314266,3.2078,3745.8,3745.5,0.8855]
[1753876314561,3.2078,3746.2,3745.8,3.7127]
[1753876314759,3.2078,3746.2,3745.2,0.53402]
[1753876314951,40.8,3746.1,3746.0,2.8272]
[1753876315152,19.988,3746.6,3746.0,2.8272]
[1753876315362,3.2078,3746.7,3746.3,2.8272]
[1753876315553,19.986,3746.6,3746.5,2.8272]
[1753876315758,19.986,3746.6,3746.5,3.7127]